[Event "Late-Titled-Tuesday-Blitz-February-20-2024"]
[Site "Chess.com"]
[Date "2024.02.20"]
[Round "2"]
[White "chucksterf10"]
[Black "alexrustemov"]
[Result "1-0"]
[WhiteElo "2563"]
[BlackElo "2883"]
[TimeControl "180+1"]
[EndTime "14:17:50 PST"]
[Termination "chucksterf10 won on time"]

1. d4 {[%clk 0:03:00.9]} 1... d5 {[%clk 0:02:59.6]} 2. c4 {[%clk 0:03:01.5]}
2... c6 {[%clk 0:03:00]} 3. cxd5 {[%clk 0:03:01.1]} 3... cxd5 {[%clk 0:02:59.4]}
4. Bf4 {[%clk 0:03:01.8]} 4... Nf6 {[%clk 0:02:59.3]} 5. e3 {[%clk 0:03:02.2]}
5... Nc6 {[%clk 0:02:59.5]} 6. Nc3 {[%clk 0:03:02.8]} 6... a6 {[%clk 0:02:57.1]}
7. Bd3 {[%clk 0:03:02.1]} 7... Bg4 {[%clk 0:02:55]} 8. Nge2 {[%clk 0:03:02.7]}
8... e6 {[%clk 0:02:53.5]} 9. O-O {[%clk 0:03:02.9]} 9... Bd6 {[%clk 0:02:49.3]}
10. Bxd6 {[%clk 0:03:00.5]} 10... Bxe2 {[%clk 0:02:44.8]} 11. Qxe2 {[%clk
0:02:56.2]} 11... Qxd6 {[%clk 0:02:45.1]} 12. Rac1 {[%clk 0:02:56.9]} 12... O-O
{[%clk 0:02:44.9]} 13. a3 {[%clk 0:02:56.3]} 13... Qe7 {[%clk 0:02:36.7]} 14. f4
{[%clk 0:02:55.6]} 14... Ne8 {[%clk 0:02:35.8]} 15. Na4 {[%clk 0:02:51.5]} 15...
Nd6 {[%clk 0:02:35]} 16. b3 {[%clk 0:02:48.1]} 16... Rac8 {[%clk 0:02:32.8]} 17.
h3 {[%clk 0:02:44.6]} 17... g6 {[%clk 0:02:31.1]} 18. Rc2 {[%clk 0:02:42.9]}
18... Qd8 {[%clk 0:02:16]} 19. b4 {[%clk 0:02:41.1]} 19... Ne7 {[%clk
0:02:15.7]} 20. Rfc1 {[%clk 0:02:39.2]} 20... Rxc2 {[%clk 0:02:11.7]} 21. Qxc2
{[%clk 0:02:33.5]} 21... Nef5 {[%clk 0:02:08.6]} 22. Qd2 {[%clk 0:02:33.1]}
22... Qh4 {[%clk 0:02:01.2]} 23. Qf2 {[%clk 0:02:29.2]} 23... Qe7 {[%clk
0:01:59.1]} 24. g4 {[%clk 0:02:27]} 24... Ng7 {[%clk 0:01:54.4]} 25. Nc5 {[%clk
0:02:20]} 25... h5 {[%clk 0:01:52.9]} 26. Kg2 {[%clk 0:02:16]} 26... Rc8 {[%clk
0:01:51.3]} 27. Kg3 {[%clk 0:02:04.2]} 27... b6 {[%clk 0:01:44.8]} 28. Nb3
{[%clk 0:02:03.9]} 28... Rxc1 {[%clk 0:01:44.2]} 29. Nxc1 {[%clk 0:02:04.8]}
29... a5 {[%clk 0:01:41.8]} 30. bxa5 {[%clk 0:02:01.4]} 30... bxa5 {[%clk
0:01:41.9]} 31. Nb3 {[%clk 0:02:02.1]} 31... Qc7 {[%clk 0:01:38.7]} 32. Qc2
{[%clk 0:02:01.2]} 32... Qb6 {[%clk 0:01:37.7]} 33. Nc5 {[%clk 0:01:54.6]} 33...
hxg4 {[%clk 0:01:31.7]} 34. hxg4 {[%clk 0:01:50.7]} 34... Nge8 {[%clk
0:01:31.2]} 35. a4 {[%clk 0:01:49]} 35... Kg7 {[%clk 0:01:28.3]} 36. Qc3 {[%clk
0:01:46.3]} 36... Nf6 {[%clk 0:01:25]} 37. g5 {[%clk 0:01:43.2]} 37... Nfe4+
{[%clk 0:01:18.4]} 38. Bxe4 {[%clk 0:01:41.8]} 38... dxe4 {[%clk 0:01:07.5]} 39.
d5+ {[%clk 0:01:40.6]} 39... Kg8 {[%clk 0:01:05.5]} 40. dxe6 {[%clk 0:01:40.1]}
40... Nf5+ {[%clk 0:01:04.8]} 41. Kf2 {[%clk 0:01:38.6]} 41... fxe6 {[%clk
0:01:02.3]} 42. Nd7 {[%clk 0:01:33.1]} 42... Qd6 {[%clk 0:00:39.6]} 43. Nf6+
{[%clk 0:01:28.2]} 43... Kf7 {[%clk 0:00:39.3]} 44. Nxe4 {[%clk 0:01:28.4]}
44... Qd1 {[%clk 0:00:26.9]} 45. Qf6+ {[%clk 0:01:09.4]} 45... Ke8 {[%clk
0:00:27.2]} 46. Qxg6+ {[%clk 0:00:55.1]} 46... Kd8 {[%clk 0:00:26.4]} 47. Qg8+
{[%clk 0:00:55.8]} 47... Kc7 {[%clk 0:00:25.4]} 48. Qf7+ {[%clk 0:00:40.6]}
48... Kb8 {[%clk 0:00:25.4]} 49. Qe8+ {[%clk 0:00:40.3]} 49... Kc7 {[%clk
0:00:24.9]} 50. Qf7+ {[%clk 0:00:38.9]} 50... Kb8 {[%clk 0:00:25.1]} 51. Qf8+
{[%clk 0:00:39.6]} 51... Kc7 {[%clk 0:00:25.4]} 52. Qc5+ {[%clk 0:00:40]} 52...
Kb8 {[%clk 0:00:25.5]} 53. Qb5+ {[%clk 0:00:40.4]} 53... Kc8 {[%clk 0:00:22]}
54. Qc5+ {[%clk 0:00:40.9]} 54... Kb8 {[%clk 0:00:21.4]} 55. Qb6+ {[%clk
0:00:41.4]} 55... Kc8 {[%clk 0:00:21.8]} 56. Qxe6+ {[%clk 0:00:41.6]} 56... Kc7
{[%clk 0:00:15.5]} 57. Qxf5 {[%clk 0:00:41.6]} 57... Qxa4 {[%clk 0:00:15.1]} 58.
g6 {[%clk 0:00:39.3]} 58... Qa2+ {[%clk 0:00:11.9]} 59. Kg3 {[%clk 0:00:38.9]}
59... Qa1 {[%clk 0:00:12.4]} 60. Kg4 {[%clk 0:00:35.7]} 60... a4 {[%clk
0:00:12]} 61. Qe5+ {[%clk 0:00:34.1]} 61... Qxe5 {[%clk 0:00:10.4]} 62. fxe5
{[%clk 0:00:35]} 62... a3 {[%clk 0:00:11.1]} 63. Nc3 {[%clk 0:00:35.7]} 1-0

[Event "Late-Titled-Tuesday-Blitz-February-20-2024"]
[Site "Chess.com"]
[Date "2024.02.20"]
[Round "2"]
[White "komogro"]
[Black "adwilhans"]
[Result "0-1"]
[WhiteElo "2500"]
[BlackElo "2333"]
[TimeControl "180+1"]
[EndTime "14:17:52 PST"]
[Termination "adwilhans won on time"]

1. Nf3 {[%clk 0:02:59.8]} 1... f5 {[%clk 0:02:59.1]} 2. d3 {[%clk 0:02:59.7]}
2... Nf6 {[%clk 0:02:58.3]} 3. e4 {[%clk 0:03:00.3]} 3... d6 {[%clk 0:02:58.4]}
4. Nc3 {[%clk 0:02:59.9]} 4... Nc6 {[%clk 0:02:57.7]} 5. Bg5 {[%clk 0:02:57.6]}
5... e5 {[%clk 0:02:30.1]} 6. d4 {[%clk 0:02:55.2]} 6... exd4 {[%clk 0:02:27.5]}
7. Nxd4 {[%clk 0:02:55.3]} 7... fxe4 {[%clk 0:02:26.2]} 8. Bb5 {[%clk
0:02:49.1]} 8... Bd7 {[%clk 0:02:24.5]} 9. Nxe4 {[%clk 0:02:43.7]} 9... Be7
{[%clk 0:02:23.6]} 10. Bxc6 {[%clk 0:02:31.7]} 10... bxc6 {[%clk 0:02:21.3]} 11.
Ng3 {[%clk 0:01:41.4]} 11... O-O {[%clk 0:02:01.2]} 12. O-O {[%clk 0:01:40.7]}
12... Nd5 {[%clk 0:01:41.5]} 13. Bxe7 {[%clk 0:01:33.2]} 13... Qxe7 {[%clk
0:01:41.2]} 14. c4 {[%clk 0:01:13.1]} 14... Nf4 {[%clk 0:01:29.4]} 15. Nh5
{[%clk 0:00:42]} 15... Qe5 {[%clk 0:01:03.9]} 16. Nxf4 {[%clk 0:00:38.5]} 16...
Rxf4 {[%clk 0:01:02.7]} 17. Nf3 {[%clk 0:00:36.5]} 17... Qxb2 {[%clk 0:00:55.6]}
18. Rb1 {[%clk 0:00:31]} 18... Qxa2 {[%clk 0:00:51.4]} 19. Rb7 {[%clk
0:00:30.2]} 19... Bg4 {[%clk 0:00:42.7]} 20. Qd2 {[%clk 0:00:30]} 20... Qxd2
{[%clk 0:00:40.1]} 21. Nxd2 {[%clk 0:00:30.9]} 21... Rf7 {[%clk 0:00:38.5]} 22.
Ra1 {[%clk 0:00:22.5]} 22... a5 {[%clk 0:00:35.7]} 23. f3 {[%clk 0:00:20.4]}
23... Bf5 {[%clk 0:00:34.8]} 24. Nb3 {[%clk 0:00:16.9]} 24... a4 {[%clk
0:00:34.2]} 25. Nd4 {[%clk 0:00:17.2]} 25... Bd3 {[%clk 0:00:31.5]} 26. Nxc6
{[%clk 0:00:16.3]} 26... Bxc4 {[%clk 0:00:28.2]} 27. Rb4 {[%clk 0:00:16.3]}
27... Bd5 {[%clk 0:00:23.2]} 28. Rb8+ {[%clk 0:00:08.2]} 28... Rxb8 {[%clk
0:00:19.7]} 29. Nxb8 {[%clk 0:00:09.1]} 29... Bb3 {[%clk 0:00:15.5]} 30. Kf2
{[%clk 0:00:08.7]} 30... c5 {[%clk 0:00:15.2]} 31. Nc6 {[%clk 0:00:05.6]} 31...
Rc7 {[%clk 0:00:09]} 32. Na5 {[%clk 0:00:04.8]} 32... c4 {[%clk 0:00:09.2]} 33.
Ke3 {[%clk 0:00:04]} 33... c3 {[%clk 0:00:09.3]} 34. Rc1 {[%clk 0:00:03.1]}
34... c2 {[%clk 0:00:08.1]} 35. Kd2 {[%clk 0:00:02.9]} 35... d5 {[%clk
0:00:08.4]} 36. f4 {[%clk 0:00:02.5]} 36... Kf7 {[%clk 0:00:08.1]} 37. g4 {[%clk
0:00:03.1]} 37... Rc5 {[%clk 0:00:07.2]} 38. Nb7 {[%clk 0:00:02.3]} 38... Rc4
{[%clk 0:00:07.7]} 39. Nd6+ {[%clk 0:00:02.4]} 39... Ke6 {[%clk 0:00:08.2]} 40.
Nxc4 {[%clk 0:00:03.3]} 40... dxc4 {[%clk 0:00:08.8]} 41. Kc3 {[%clk 0:00:02.6]}
41... Kd5 {[%clk 0:00:08.8]} 42. h4 {[%clk 0:00:02.4]} 42... a3 {[%clk
0:00:09.1]} 43. f5 {[%clk 0:00:01.7]} 43... a2 {[%clk 0:00:09.4]} 44. Kb2 {[%clk
0:00:01.3]} 44... Ke5 {[%clk 0:00:09.6]} 45. Re1+ {[%clk 0:00:01.2]} 45... Kf4
{[%clk 0:00:09.9]} 0-1

[Event "Late-Titled-Tuesday-Blitz-February-20-2024"]
[Site "Chess.com"]
[Date "2024.02.20"]
[Round "2"]
[White "Hrant_ChessMood"]
[Black "DefiantChair"]
[Result "1-0"]
[WhiteElo "3005"]
[BlackElo "2601"]
[TimeControl "180+1"]
[EndTime "14:17:55 PST"]
[Termination "Hrant_ChessMood won by resignation"]

1. Nf3 {[%clk 0:03:00.9]} 1... d5 {[%clk 0:02:59.6]} 2. d4 {[%clk 0:02:58.7]}
2... Nf6 {[%clk 0:03:00]} 3. c4 {[%clk 0:02:58.2]} 3... e6 {[%clk 0:03:00.3]} 4.
Nc3 {[%clk 0:02:58.4]} 4... Bb4 {[%clk 0:03:00.3]} 5. Bg5 {[%clk 0:02:54.7]}
5... dxc4 {[%clk 0:03:00.3]} 6. a3 {[%clk 0:02:49.5]} 6... Bxc3+ {[%clk
0:02:57.6]} 7. bxc3 {[%clk 0:02:50.4]} 7... b5 {[%clk 0:02:57.2]} 8. Nd2 {[%clk
0:02:38.1]} 8... Nbd7 {[%clk 0:02:54.5]} 9. a4 {[%clk 0:02:36.6]} 9... c6 {[%clk
0:02:54.1]} 10. g3 {[%clk 0:02:34.2]} 10... h6 {[%clk 0:02:51.8]} 11. Bxf6
{[%clk 0:02:33.8]} 11... Nxf6 {[%clk 0:02:52.7]} 12. Bg2 {[%clk 0:02:34.7]}
12... Nd5 {[%clk 0:02:49.4]} 13. Qc1 {[%clk 0:02:27.3]} 13... a6 {[%clk
0:02:36]} 14. O-O {[%clk 0:02:26.6]} 14... O-O {[%clk 0:02:35.8]} 15. Ne4 {[%clk
0:02:25.2]} 15... Ra7 {[%clk 0:02:24.4]} 16. Nc5 {[%clk 0:02:24.1]} 16... Re7
{[%clk 0:02:23.9]} 17. axb5 {[%clk 0:02:16.4]} 17... axb5 {[%clk 0:02:19.7]} 18.
e4 {[%clk 0:02:16.2]} 18... Nb6 {[%clk 0:02:16.3]} 19. e5 {[%clk 0:02:16.8]}
19... Nd5 {[%clk 0:02:15.1]} 20. Ra8 {[%clk 0:02:08.9]} 20... Qc7 {[%clk
0:02:05.8]} 21. Qa3 {[%clk 0:02:08.2]} 21... f5 {[%clk 0:02:02.7]} 22. Ra1
{[%clk 0:01:58.5]} 22... g5 {[%clk 0:01:48.5]} 23. Bxd5 {[%clk 0:01:42.7]} 23...
exd5 {[%clk 0:01:39.3]} 24. Ra7 {[%clk 0:01:11.9]} 24... Qxa7 {[%clk 0:01:36.8]}
25. Qxa7 {[%clk 0:01:12.8]} 25... Rxa7 {[%clk 0:01:37.3]} 26. Rxa7 {[%clk
0:01:13.4]} 26... f4 {[%clk 0:01:35.9]} 27. gxf4 {[%clk 0:00:56.4]} 27... gxf4
{[%clk 0:01:35.9]} 28. f3 {[%clk 0:00:56.2]} 28... Bf5 {[%clk 0:01:30.4]} 29.
Kf2 {[%clk 0:00:54.9]} 29... b4 {[%clk 0:01:23.4]} 30. cxb4 {[%clk 0:00:51.9]}
30... c3 {[%clk 0:01:24.3]} 31. Ke2 {[%clk 0:00:45.9]} 31... Kh8 {[%clk
0:01:24]} 32. e6 {[%clk 0:00:30.3]} 32... Rg8 {[%clk 0:01:20.6]} 33. e7 {[%clk
0:00:27.8]} 33... Re8 {[%clk 0:01:00.6]} 34. Nb3 {[%clk 0:00:16.2]} 34... Kg7
{[%clk 0:00:57.2]} 35. Na5 {[%clk 0:00:16.7]} 35... Kf7 {[%clk 0:00:56.1]} 36.
Nxc6 {[%clk 0:00:16.8]} 36... Rc8 {[%clk 0:00:38.4]} 37. b5 {[%clk 0:00:15.4]}
37... Ke8 {[%clk 0:00:37.9]} 38. Kd1 {[%clk 0:00:12.7]} 38... Bd7 {[%clk
0:00:35.8]} 39. Ra6 {[%clk 0:00:11.3]} 39... Bxc6 {[%clk 0:00:27.5]} 40. bxc6
{[%clk 0:00:12.2]} 40... Kxe7 {[%clk 0:00:27.3]} 41. Kc2 {[%clk 0:00:12.9]}
41... Kd6 {[%clk 0:00:27.2]} 42. Kxc3 {[%clk 0:00:07.2]} 42... Rxc6+ {[%clk
0:00:26.6]} 43. Rxc6+ {[%clk 0:00:07.1]} 43... Kxc6 {[%clk 0:00:27.5]} 44. Kb4
{[%clk 0:00:08]} 44... Kb6 {[%clk 0:00:27.4]} 45. h3 {[%clk 0:00:08.2]} 45...
Kc6 {[%clk 0:00:21.9]} 46. Ka5 {[%clk 0:00:08.3]} 46... Kd6 {[%clk 0:00:16.5]}
47. Kb6 {[%clk 0:00:08.3]} 47... Kd7 {[%clk 0:00:16.8]} 48. Kc5 {[%clk
0:00:08.2]} 48... Ke6 {[%clk 0:00:15.6]} 49. Kc6 {[%clk 0:00:08.9]} 49... Kf5
{[%clk 0:00:14.6]} 50. Kxd5 {[%clk 0:00:09.2]} 50... Kg5 {[%clk 0:00:14.4]} 51.
Ke4 {[%clk 0:00:09.8]} 51... Kh4 {[%clk 0:00:15.3]} 52. d5 {[%clk 0:00:10.7]}
52... Kxh3 {[%clk 0:00:16.2]} 53. d6 {[%clk 0:00:11.3]} 53... Kg2 {[%clk
0:00:17.1]} 54. d7 {[%clk 0:00:12.2]} 1-0

[Event "Late-Titled-Tuesday-Blitz-February-20-2024"]
[Site "Chess.com"]
[Date "2024.02.20"]
[Round "2"]
[White "GMBenjaminBok"]
[Black "subham777"]
[Result "1-0"]
[WhiteElo "3011"]
[BlackElo "2603"]
[TimeControl "180+1"]
[EndTime "14:17:56 PST"]
[Termination "GMBenjaminBok won by resignation"]

1. d4 {[%clk 0:03:00.9]} 1... d5 {[%clk 0:02:59]} 2. c4 {[%clk 0:03:00.6]} 2...
e6 {[%clk 0:02:58.9]} 3. Nc3 {[%clk 0:03:00.6]} 3... Nf6 {[%clk 0:02:59.2]} 4.
cxd5 {[%clk 0:02:58.1]} 4... exd5 {[%clk 0:02:59.5]} 5. Bg5 {[%clk 0:02:58.6]}
5... c6 {[%clk 0:02:58.8]} 6. e3 {[%clk 0:02:58.8]} 6... Bd6 {[%clk 0:02:58.2]}
7. Bd3 {[%clk 0:02:57.6]} 7... O-O {[%clk 0:02:58.1]} 8. Nf3 {[%clk 0:02:57.6]}
8... h6 {[%clk 0:02:53.5]} 9. Bh4 {[%clk 0:02:57.4]} 9... Re8 {[%clk 0:02:52.7]}
10. O-O {[%clk 0:02:56.8]} 10... Nbd7 {[%clk 0:02:47.9]} 11. Re1 {[%clk
0:02:49.8]} 11... Nf8 {[%clk 0:02:43.9]} 12. e4 {[%clk 0:02:41.3]} 12... dxe4
{[%clk 0:02:29.9]} 13. Nxe4 {[%clk 0:02:34.5]} 13... Be7 {[%clk 0:02:16]} 14.
Bxf6 {[%clk 0:02:30.5]} 14... Bxf6 {[%clk 0:02:15.1]} 15. Nxf6+ {[%clk
0:02:29.9]} 15... gxf6 {[%clk 0:02:14.9]} 16. Rxe8 {[%clk 0:02:25.9]} 16... Qxe8
{[%clk 0:02:14.9]} 17. Qd2 {[%clk 0:02:25.7]} 17... Kg7 {[%clk 0:02:11.3]} 18.
Re1 {[%clk 0:02:22.2]} 18... Qd8 {[%clk 0:02:08.2]} 19. h3 {[%clk 0:01:49.8]}
19... Qd6 {[%clk 0:01:53]} 20. Re8 {[%clk 0:01:36.6]} 20... Rb8 {[%clk
0:01:26.8]} 21. Nh4 {[%clk 0:01:21.6]} 21... Be6 {[%clk 0:01:18.2]} 22. Rxb8
{[%clk 0:01:05.8]} 22... Qxb8 {[%clk 0:01:19.1]} 23. a3 {[%clk 0:00:59.8]} 23...
Ng6 {[%clk 0:01:08]} 24. Nf5+ {[%clk 0:00:46.5]} 24... Bxf5 {[%clk 0:01:05.1]}
25. Bxf5 {[%clk 0:00:47.4]} 25... Qd6 {[%clk 0:01:01.7]} 26. Qe3 {[%clk
0:00:42.6]} 26... a5 {[%clk 0:00:52.4]} 27. g3 {[%clk 0:00:39.8]} 27... Ne7
{[%clk 0:00:47.5]} 28. Bc2 {[%clk 0:00:37.6]} 28... Qe6 {[%clk 0:00:34.6]} 29.
Kg2 {[%clk 0:00:35.7]} 29... Qd5+ {[%clk 0:00:18.3]} 30. Be4 {[%clk 0:00:24.9]}
30... Qa2 {[%clk 0:00:10.1]} 31. Qe2 {[%clk 0:00:15.2]} 31... Qe6 {[%clk
0:00:05.3]} 32. Qf3 {[%clk 0:00:15.6]} 32... Qa2 {[%clk 0:00:03.2]} 33. Qg4+
{[%clk 0:00:15.2]} 33... Kf8 {[%clk 0:00:03]} 34. Qf4 {[%clk 0:00:09]} 34... Kg7
{[%clk 0:00:02.3]} 35. Qc7 {[%clk 0:00:04.4]} 35... Qe6 {[%clk 0:00:01.1]} 36.
Bf3 {[%clk 0:00:04.9]} 36... f5 {[%clk 0:00:01.6]} 37. Qxb7 {[%clk 0:00:04.5]}
37... Qd6 {[%clk 0:00:02.2]} 38. Qb6 {[%clk 0:00:02.5]} 38... f4 {[%clk
0:00:02.2]} 39. Qc5 {[%clk 0:00:02.7]} 39... Qc7 {[%clk 0:00:01.5]} 40. Qe5+
{[%clk 0:00:01.4]} 40... Qxe5 {[%clk 0:00:01.7]} 41. dxe5 {[%clk 0:00:02.3]}
41... fxg3 {[%clk 0:00:02.5]} 42. Kxg3 {[%clk 0:00:02.5]} 42... Ng6 {[%clk
0:00:02.6]} 43. Bxc6 {[%clk 0:00:02.6]} 43... Nxe5 {[%clk 0:00:02.9]} 44. Bd5
{[%clk 0:00:03.1]} 44... Nd3 {[%clk 0:00:02.6]} 45. b3 {[%clk 0:00:03.6]} 45...
Kf6 {[%clk 0:00:02.2]} 46. Bc4 {[%clk 0:00:03.8]} 46... Nc5 {[%clk 0:00:01.5]}
47. b4 {[%clk 0:00:04.3]} 47... axb4 {[%clk 0:00:02]} 48. axb4 {[%clk
0:00:05.2]} 48... Na4 {[%clk 0:00:02.8]} 49. b5 {[%clk 0:00:05.2]} 49... Nb6
{[%clk 0:00:03.3]} 50. Bb3 {[%clk 0:00:05.6]} 50... Kg6 {[%clk 0:00:03]} 51. Kf4
{[%clk 0:00:06]} 51... f6 {[%clk 0:00:03.7]} 52. Ke4 {[%clk 0:00:06.4]} 52...
Kg5 {[%clk 0:00:04.1]} 53. Kd4 {[%clk 0:00:06.4]} 53... Kh4 {[%clk 0:00:04.7]}
54. Be6 {[%clk 0:00:06.7]} 54... Kg5 {[%clk 0:00:04]} 55. Kc5 {[%clk 0:00:07]}
55... Na4+ {[%clk 0:00:04.4]} 56. Kc6 {[%clk 0:00:07.6]} 56... Kf4 {[%clk
0:00:04.4]} 57. Bb3 {[%clk 0:00:08]} 57... Nc3 {[%clk 0:00:03.7]} 58. b6 {[%clk
0:00:08.4]} 1-0

[Event "Late-Titled-Tuesday-Blitz-February-20-2024"]
[Site "Chess.com"]
[Date "2024.02.20"]
[Round "2"]
[White "Christ_is_alive"]
[Black "IMRosen"]
[Result "0-1"]
[WhiteElo "2275"]
[BlackElo "2682"]
[TimeControl "180+1"]
[EndTime "14:17:58 PST"]
[Termination "IMRosen won by resignation"]

1. e4 {[%clk 0:03:00.9]} 1... c5 {[%clk 0:02:59.3]} 2. Nf3 {[%clk 0:03:00.8]}
2... Nc6 {[%clk 0:02:59.2]} 3. d4 {[%clk 0:03:01.1]} 3... cxd4 {[%clk
0:03:00.1]} 4. Nxd4 {[%clk 0:03:01.5]} 4... g6 {[%clk 0:03:00.8]} 5. c4 {[%clk
0:03:01.2]} 5... Nf6 {[%clk 0:03:00.8]} 6. Nc3 {[%clk 0:03:00.5]} 6... Nxd4
{[%clk 0:03:00.8]} 7. Qxd4 {[%clk 0:02:59.9]} 7... d6 {[%clk 0:03:01.6]} 8. Be2
{[%clk 0:02:58]} 8... Bg7 {[%clk 0:03:01.9]} 9. Be3 {[%clk 0:02:58.3]} 9... O-O
{[%clk 0:03:01.9]} 10. Qd2 {[%clk 0:02:58.8]} 10... Be6 {[%clk 0:03:01.9]} 11.
b3 {[%clk 0:02:38]} 11... a5 {[%clk 0:03:02]} 12. O-O {[%clk 0:02:23.1]} 12...
a4 {[%clk 0:02:59.2]} 13. f3 {[%clk 0:02:07.9]} 13... axb3 {[%clk 0:02:22.3]}
14. axb3 {[%clk 0:02:08.8]} 14... Ra5 {[%clk 0:02:22.3]} 15. Rxa5 {[%clk
0:01:28.4]} 15... Qxa5 {[%clk 0:02:21.8]} 16. Nd5 {[%clk 0:01:25.2]} 16... Qxd2
{[%clk 0:02:02.6]} 17. Nxe7+ {[%clk 0:01:15.7]} 17... Kh8 {[%clk 0:02:02.6]} 18.
Bxd2 {[%clk 0:01:16.3]} 18... Re8 {[%clk 0:02:02.4]} 19. Nd5 {[%clk 0:01:00.9]}
19... Nxd5 {[%clk 0:02:02.6]} 20. exd5 {[%clk 0:00:46.8]} 20... Bxd5 {[%clk
0:02:03.5]} 21. Bd3 {[%clk 0:00:46.2]} 21... Bd4+ {[%clk 0:01:54.9]} 22. Kh1
{[%clk 0:00:46.1]} 22... Be6 {[%clk 0:01:55.6]} 23. Be4 {[%clk 0:00:38.6]} 23...
Rb8 {[%clk 0:01:46.2]} 24. Bb4 {[%clk 0:00:36.9]} 24... Bc5 {[%clk 0:01:41.2]}
25. Bc3+ {[%clk 0:00:33.1]} 25... Kg8 {[%clk 0:01:40.3]} 26. Rd1 {[%clk
0:00:29.5]} 26... f5 {[%clk 0:01:16.3]} 27. Bd5 {[%clk 0:00:27.6]} 27... Bxd5
{[%clk 0:01:14.2]} 28. Rxd5 {[%clk 0:00:28.5]} 28... b5 {[%clk 0:01:14.8]} 29.
g3 {[%clk 0:00:16.9]} 29... bxc4 {[%clk 0:01:09.4]} 30. bxc4 {[%clk 0:00:17.8]}
30... Rb3 {[%clk 0:01:09.7]} 31. Be5 {[%clk 0:00:17]} 31... Rb6 {[%clk
0:00:48.7]} 32. Bd4 {[%clk 0:00:13.8]} 32... Rb1+ {[%clk 0:00:43]} 33. Kg2
{[%clk 0:00:11.8]} 33... Ba3 {[%clk 0:00:41.5]} 34. c5 {[%clk 0:00:07.9]} 34...
dxc5 {[%clk 0:00:18.7]} 35. Bxc5 {[%clk 0:00:08.8]} 35... Bc1 {[%clk 0:00:16.8]}
36. Rd7 {[%clk 0:00:07.6]} 36... Rb2+ {[%clk 0:00:13.6]} 37. Kh3 {[%clk
0:00:06.9]} 37... Bh6 {[%clk 0:00:07.2]} 38. Bd4 {[%clk 0:00:06.9]} 38... Rd2
{[%clk 0:00:06.5]} 39. Rd8+ {[%clk 0:00:06.4]} 39... Kf7 {[%clk 0:00:07]} 40.
Bb6 {[%clk 0:00:06.2]} 40... Rb2 {[%clk 0:00:06.3]} 41. Bc5 {[%clk 0:00:02.8]}
41... Bg5 {[%clk 0:00:04.5]} 42. Rc8 {[%clk 0:00:03.2]} 42... Rc2 {[%clk
0:00:04.1]} 43. f4 {[%clk 0:00:02.3]} 43... Bf6 {[%clk 0:00:04.3]} 44. Rc7+
{[%clk 0:00:02.4]} 44... Ke6 {[%clk 0:00:04.8]} 45. Bb6 {[%clk 0:00:02.6]} 45...
Rb2 {[%clk 0:00:04.8]} 46. Ba5 {[%clk 0:00:02.5]} 46... Be7 {[%clk 0:00:04.9]}
47. Bc3 {[%clk 0:00:01.7]} 47... Rc2 {[%clk 0:00:05.5]} 48. Be5 {[%clk 0:00:02]}
48... Rd2 {[%clk 0:00:04.8]} 49. Rc6+ {[%clk 0:00:02.2]} 49... Kd5 {[%clk
0:00:05]} 50. Ra6 {[%clk 0:00:03.1]} 50... Bc5 {[%clk 0:00:05.3]} 51. Ra5 {[%clk
0:00:03.5]} 51... Kc6 {[%clk 0:00:05.1]} 52. Ra6+ {[%clk 0:00:04.1]} 52... Kb7
{[%clk 0:00:05.3]} 53. Ra5 {[%clk 0:00:04.3]} 53... Bg1 {[%clk 0:00:05.7]} 54.
Rb5+ {[%clk 0:00:04.3]} 54... Kc6 {[%clk 0:00:05.7]} 55. Kh4 {[%clk 0:00:04.9]}
55... Kxb5 {[%clk 0:00:05.5]} 56. Kg5 {[%clk 0:00:04.5]} 56... Rxh2 {[%clk
0:00:05.7]} 0-1